Cogmind - Beta 16.1 @@@ ROGUE MODE // 2026.02.25 @ 01:32:45 Player: Rocket Result: Destroyed by Y-64 Sentinel with KE Penetrator Performance ------------- Evolutions (3) 1500 Regions Visited (10) 2000 Robots Destroyed (103) 515 Value Destroyed (3188) 3188 Prototype IDs (4) 80 Alien Tech Used (1) 200 Bonus (742) 742 TOTAL SCORE: 8225 Bonus ------- Follower Combat Kills 170 Met Imprinter 300 Was Imprinted 300 Friendly Fire -28 Cogmind --------- Core Integrity 0/700 Matter 285/300 Energy 100/100 System Corruption 12% Temperature Cool (27) Movement Core (50) Location -6/Proximity Caves Parts ------- > --- POWER (1) -------- (None) > --- PROPULSION (6) --- (None) > --- UTILITY (5) ------ (None) > --- WEAPON (2) ------- (None) > --- INVENTORY (5) ---- Cargo Storage Unit Advanced Terrain Scan Processor Plasma Cutter Makeshift Spear Peak State ------------ > --- POWER ------------ Improved Deuterium Engine > --- PROPULSION ------- Medium Treads Improved Aluminum Leg Wheel Wheel Wheel Compact Wheel > --- UTILITY ---------- Huge Storage Unit Improved Sensor Array Improved Signal Interpreter Experimental Armor Integrity Analyzer Makeshift System Shield > --- WEAPON ----------- Chainsword CR-A16's Pointy Stick > --- INVENTORY -------- Micro Nuclear Core Light Angular Momentum Engine Cargo Storage Unit High-capacity Matter Pod High-capacity Matter Pod High-capacity Matter Pod Structural Scanner Improved Sensor Array Advanced Terrain Scan Processor Hardened Light Armor Plating Makeshift Light Armor Plating Makeshift Light Armor Plating Reactive Plating Reactive Plating High-powered Tractor Beam Field Recycling Unit EM Pulse Cannon Ion Cannon Flak Cannon Advanced Assault Cannon Rocket Launcher Remote Datajack Plasma Cutter Makeshift Spear [Rating: 49] Favorites ----------- Power Improved Deuterium Engine Engine Improved Deuterium Engine Power Core Micro Nuclear Core Propulsion Wheel Treads Light Treads Leg Improved Aluminum Leg Wheel Wheel Utility Improved Sensor Array Device Improved Sensor Array Storage Huge Storage Unit Processor Improved Signal Interpreter Hackware Makeshift System Shield Protection Medium Armor Plating Weapon EM Pulse Gun Energy Gun EM Pulse Gun Energy Cannon EM Pulse Cannon Ballistic Gun Light Assault Rifle Ballistic Cannon Advanced Assault Cannon Launcher Rocket Launcher Special Weapon Remote Datajack Impact Weapon Great Maul Slashing Weapon Scythe Piercing Weapon CR-A16's Pointy Stick Build | -11 -10 -10 -10 -9 -8 -7 -7 -7 -7 -6 ------- Run | Yrd Mat Min Exi Min Mat Fac Low Low Zio Pro Slots Evolved 6 | . . . . . 4 2 . . . . Power . | . . . . . . . . . . . Propulsion 3 | . . . . . 3 . . . . . Utility 3 | . . . . . 1 2 . . . . Weapon . | . . . . . . . . . . . Parts Attached 108 | 7 8 4 . 2 32 34 5 5 9 2 Power 10 | 1 1 . . 1 4 3 . . . . Engine 9 | 1 1 . . 1 4 2 . . . . Core 1 | . . . . . . 1 . . . . Reactor . | . . . . . . . . . . . Propulsion 39 | 2 2 2 . . 11 16 2 1 2 1 Treads 17 | . 2 2 . . 9 3 1 . . . Leg 6 | . . . . . 1 2 1 . 1 1 Wheel 16 | 2 . . . . 1 11 . 1 1 . Hover . | . . . . . . . . . . . Flight . | . . . . . . . . . . . Utility 34 | 1 3 . . . 9 10 2 3 6 . Device 6 | . . . . . . 4 1 1 . . Storage 5 | 1 1 . . . 1 1 . 1 . . Processor 8 | . . . . . 2 2 . . 4 . Hackware 2 | . . . . . . . . . 2 . Protection 13 | . 2 . . . 6 3 1 1 . . Artifact . | . . . . . . . . . . . Weapon 25 | 3 2 2 . 1 8 5 1 1 1 1 Energy Gun 3 | 2 1 . . . . . . . . . Energy Cannon 2 | . . . . . 1 1 . . . . Ballistic Gun 5 | 1 . 1 . . 2 1 . . . . Ballistic Cannon 3 | . . . . . 1 1 . 1 . . Launcher 4 | . . 1 . 1 2 . . . . . Special Weapon 2 | . 1 . . . . . . . . 1 Impact Weapon 1 | . . . . . 1 . . . . . Slashing Weapon 4 | . . . . . 1 2 1 . . . Piercing Weapon 1 | . . . . . . . . . 1 . Special Melee Weapon . | . . . . . . . . . . . Unidentified Prototypes 5 | . . . . . . 1 . 1 3 . Corrupted Parts 3 | . 1 . . . 1 . . . . 1 System Corruption 15 | . 2 . . . 11 . . . . 2 Parts Lost 60 | . 2 1 . . 13 11 2 4 . 27 Power 7 | . 1 . . . 2 2 . . . 2 Propulsion 22 | . . . . . 5 6 2 3 . 6 Utility 16 | . 1 . . . 2 1 . . . 12 Weapon 15 | . . 1 . . 4 2 . 1 . 7 Highest Loss Streak 26 | . 2 1 . . 7 5 2 2 . 26 To Critical Strikes . | . . . . . . . . . . . Average Backups 18 | 2 11 14 15 15 13 17 23 23 23 23 Power 1 | . 1 1 1 1 . 2 2 2 2 2 Propulsion . | 1 3 3 2 2 . . 1 . . . Utility 10 | . 2 4 6 7 8 9 14 14 14 14 Weapon 4 | . 3 4 4 4 3 3 4 5 5 5 Tool/Special . | . . . . . . . . . . . Unused Backups 15 | . . . 1 . 3 3 . . 1 7 Power 1 | . . . . . . 1 . . . . Propulsion . | . . . . . . . . . . . Utility 9 | . . . . . 1 1 . . 1 6 Weapon 5 | . . . 1 . 2 1 . . . 1 Tool/Special . | . . . . . . . . . . . Average Slot Usage (%) 92 | . 96 89 100 100 84 89 95 90 93 93 Engine 8 | . 13 14 14 14 8 6 7 7 7 6 Treads 15 | . 23 28 28 28 36 8 3 6 7 7 Leg 2 | . . . . . . . 2 3 4 9 Wheel 14 | . 4 . . . 2 20 28 18 24 19 Device 7 | . . . . . . 13 15 14 8 6 Storage 9 | . 14 14 14 14 9 7 7 7 7 7 Processor 4 | . . . . . 2 6 7 7 7 7 Hackware 1 | . . . . . . . . . 7 13 Protection 8 | . 10 14 14 14 7 7 7 6 4 . Energy Gun 4 | . 27 17 14 10 . . . . . . Ballistic Gun 2 | . . . 14 14 3 . . . . . Ballistic Cannon 1 | . . . . . 4 . . 6 . 6 Launcher 1 | . . . . 3 1 1 4 . . . Slashing Weapon 5 | . . . . . 5 8 9 7 11 . Peak Build Rating 49 | 6 13 13 12 17 25 38 36 41 49 48 Average Rating 27 | 4 10 11 12 12 20 30 30 38 40 45 On Entrance 20 | . 6 12 12 12 17 22 29 36 35 44 Avg Prop Armor Cover (%) 12 | . . . . . 2 10 11 10 13 18 Naked Turns 4 | . . . . . . . . . . 4 Heaviest Build 112 | 12 36 38 35 41 58 103 104 112 109 100 Greatest Support 106 | 26 46 46 46 46 106 100 50 30 46 36 Greatest Overweight (x) 9 | . 1 . . . 4 9 6 5 3 9 Average Overweight (x) 1 | . . . . . . 1 2 3 2 2 Largest Inventory Capacity 25 | 8 15 15 15 15 15 25 25 25 25 25 Average Capacity 20 | 6 14 15 15 15 15 21 25 25 25 24 Most Carried 25 | 4 15 15 15 15 15 24 25 25 25 25 Average Carried 19 | 2 11 14 15 15 13 17 24 24 24 24 Final Capacity 25 | 8 15 15 15 15 15 25 25 25 25 5 Final Carried 25 | 4 15 15 15 15 15 24 25 25 25 5 Class Distribution -------------------- 44% | Mutant 30% | Scavenger-Mutant 8% | Hacker-Mutant 7% | Scavenger-Assassin 5% | Assassin Dominant Class ---------------- Mutant | -10/Materials Mutant | -10/Mines Mutant | -10/Exiles Mutant | -9/Mines Scavenger-Mutant | -8/Materials Scavenger-Assassin | -7/Factory Scavenger-Mutant | -7/Lower Caves Mutant | -7/Lower Caves Scavenger-Mutant | -7/Zion Hacker-Mutant | -6/Proximity Caves Resources | -11 -10 -10 -10 -9 -8 -7 -7 -7 -7 -6 ----------- Run | Yrd Mat Min Exi Min Mat Fac Low Low Zio Pro Matter Collected 2730 | 237 92 105 66 50 625 522 438 232 185 178 Remotely 355 | . . . . . . . 164 191 . . Salvage Created 3357 | . 613 147 . 20 1215 995 239 53 . 75 Parts 199 | . 32 10 . 9 70 63 4 7 . 4 Haulers Intercepted 1 | . . . . . 1 . . . . . Recyclers Shooed 4 | 1 . 1 . . 1 1 . . . . Parts Field Recycled . | . . . . . . . . . . . Retrieved Matter . | . . . . . . . . . . . Parts Self-Destructed 28 | . . . . . . . 1 6 . 21 Prevented 2 | . . . . . . . . . . 2 Parts Restored . | . . . . . . . . . . . Kills | -11 -10 -10 -10 -9 -8 -7 -7 -7 -7 -6 ------- Run | Yrd Mat Min Exi Min Mat Fac Low Low Zio Pro Combat Hostiles Destroyed 78 | . 12 5 . 7 24 16 4 7 . 3 Melee 23 | . . . . . 8 15 . . . . Guns 13 | . 11 1 . . 1 . . . . . Cannons 5 | . . . . . . 1 . 1 . 3 AOE 32 | . . 3 . 7 12 . 4 6 . . Classes Destroyed 16 | . 3 1 . 1 6 3 . . . 2 Worker 9 | . 2 1 . . 2 4 . . . . Builder 4 | . . . . . 3 1 . . . . Tunneler 4 | . . . . 1 2 1 . . . . Hauler 1 | . . . . . 1 . . . . . Recycler 2 | . . . . . 2 . . . . . Minesweeper 1 | . . . . . . . . . . 1 Operator 3 | . 1 . . . 1 1 . . . . Drone 1 | . . . . . . . . . . 1 Watcher 1 | . . . . . 1 . . . . . Swarmer 22 | . . 3 . 7 3 . . 7 . 2 Grunt 41 | . 12 2 . . 14 9 4 . . . Duelist 1 | . . . . . . 1 . . . . Sentry 7 | . . . . . 5 2 . . . . Specialist 2 | . . . . . 2 . . . . . Hunter 1 | . . . . . . 1 . . . . Programmer 3 | . . . . . . 3 . . . . Best Kill Streak 8 | . 3 3 . 4 8 2 4 4 . 2 Combat Bots Only 8 | . 3 3 . 4 8 2 4 4 . 2 Max Kills in Single Turn 2 | . 1 2 . 2 2 1 1 2 . 1 Gunslinging . | . . . . . . . . . . . Exploded 2 | . . 2 . 2 2 . 1 2 . . Melee 1 | . . . . . 1 1 . . . . Uniques/NPCs Destroyed . | . . . . . . . . . . . Combat | -11 -10 -10 -10 -9 -8 -7 -7 -7 -7 -6 -------- Run | Yrd Mat Min Exi Min Mat Fac Low Low Zio Pro Hostile Shots Fired 612 | . 42 23 . 15 193 209 11 23 . 96 Missed 200 | . 10 8 . 4 58 73 7 7 . 33 Hits 412 | . 32 15 . 11 135 136 4 16 . 63 Melee 13 | . . . . . . 8 . . . 5 Projectile 399 | . 32 15 . 11 135 128 4 16 . 58 Critical Strikes 21 | . 1 1 . . 4 9 . . . 6 Damage Taken 6369 | . 444 222 . 180 2051 1798 72 312 . 1290 Core 1101 | . 23 6 . 48 313 328 . 63 . 320 Absorbed by Shields . | . . . . . . . . . . . Redirected to Shielding 6 | . . . . . . 6 . . . . Regen/Repaired (Parts) 148 | . . . . . . . . . 148 . Core Remaining (%) 70 | 100 . . . 69 43 . . . . . Volleys Fired 172 | 1 36 14 . 8 36 9 11 21 . 36 Largest 2 | 2 2 2 . 1 2 1 1 1 . 1 Hottest 80 | 60 80 80 . 33 63 63 33 40 . 63 Shots Fired 218 | 2 72 17 . 8 42 9 11 21 . 36 Gun 105 | 2 72 15 . . 16 . . . . . Cannon 63 | . . . . . 10 9 . 13 . 31 Launcher 46 | . . 2 . 8 16 . 11 8 . 1 Special 4 | . . . . . . . . . . 4 Kinetic 64 | 1 2 . . . 17 8 . 13 . 23 Thermal . | . . . . . . . . . . . Explosive 46 | . . 2 . 8 16 . 11 8 . 1 Electromagnetic 104 | 1 70 15 . . 9 1 . . . 8 Robot Hit Streak 14 | 1 11 14 . 1 13 5 6 6 . 6 Robot Miss Streak 6 | 1 3 1 . 2 6 2 1 1 . 3 Penetration Max . | . . . . . . . . . . . Secondary Targets 1 | . 1 . . . . . . . . . Max Gunslinging Chain 1 | . 1 . . . . . . . . . Shots Hit Robots 240 | 1 50 12 . 1 68 69 10 6 . 23 Core Hits 149 | 1 26 7 . 7 53 27 10 11 . 7 Critical Kills . | . . . . . . . . . . . Critical Parts Destroyed 2 | . . . . . 2 . . . . . Critical Strikes 15 | . 3 . . . 5 6 . . . 1 Destroy 1 | . . . . . 1 . . . . . Blast 1 | . . . . . . . . . . 1 Corrupt 3 | . 3 . . . . . . . . . Smash 1 | . . . . . 1 . . . . . Sever 9 | . . . . . 3 6 . . . . Melee Attacks 175 | . . . . . 53 110 5 1 . 6 Impact 10 | . . . . . 10 . . . . . Slashing 159 | . . . . . 43 110 5 1 . . Piercing 6 | . . . . . . . . . . 6 Sneak Attacks 22 | . . . . . 10 10 . . . 2 Combat Hostiles 1 | . . . . . . 1 . . . . Follow-up Attacks 2 | . . . . . . 2 . . . . Damage Inflicted 9290 | 13 739 385 . 461 3069 2501 996 500 . 626 Guns 1050 | 13 704 164 . . 169 . . . . . Cannons 830 | . . . . . 144 177 . 56 . 453 Explosions 3031 | . 28 221 . 461 1114 . 763 444 . . Melee 4372 | . . . . . 1642 2324 233 . . 173 Ramming 7 | . 7 . . . . . . . . . Kinetic 722 | . . . . . 153 177 . 56 . 336 Thermal 204 | . 28 90 . 30 56 . . . . . Explosive 2808 | . . 131 . 431 1039 . 763 444 . . Electromagnetic 1177 | 13 704 164 . . 179 . . . . 117 Impact 319 | . . . . . 319 . . . . . Slashing 3880 | . . . . . 1323 2324 233 . . . Piercing 173 | . . . . . . . . . . 173 Highest Corruption 12 | . 2 2 2 2 11 3 3 3 3 12 Average Corruption 3 | . 2 2 2 2 11 1 3 3 3 2 Corruption Purged . | . . . . . . . . . . . Corruption Blocked . | . . . . . . . . . . . Effects 117 | . 1 5 8 5 42 8 16 24 . 8 Message Errors 22 | . . 1 1 1 7 . 2 7 . 3 Matter Fused 31 | . . 1 3 1 11 3 5 6 . 1 Heat Flow Errors 9 | . . . 1 1 5 . . 1 . 1 Energy Discharges 19 | . 1 1 3 1 4 2 3 2 . 2 Parts Fused 4 | . . . . . 1 . 2 1 . . Data Loss (minor) 15 | . . 1 . . 6 2 3 3 . . Data Loss (major) 7 | . . . . . 3 . 1 2 . 1 Misfires 5 | . . 1 . . 3 . . 1 . . Alerts 3 | . . . . 1 1 1 . . . . Misdirections 1 | . . . . . 1 . . . . . Weapon Failures 1 | . . . . . . . . 1 . . Overload Shots . | . . . . . . . . . . . Overflow Damage 447 | . . . . 11 177 154 52 19 . 34 Projectiles 4 | . . . . . . 4 . . . . Explosions 75 | . . . . 11 30 . 15 19 . . Melee 368 | . . . . . 147 150 37 . . 34 Knockbacks 6 | . . . . . 2 3 . . . 1 Impact 1 | . . . . . 1 . . . . . Kinetic 5 | . . . . . 1 3 . . . 1 Secondary . | . . . . . . . . . . . Self-Inflicted Damage 385 | . 35 49 . 85 148 . . 68 . . Shots 12 | . 1 1 . 3 5 . . 2 . . Rammed 2 | . 2 . . . . . . . . . Targets Rammed 2 | . 2 . . . . . . . . . Kicked . | . . . . . . . . . . . Crushed . | . . . . . . . . . . . Highest Temperature 321 | . 234 93 165 189 248 12 7 251 321 251 Average Temperature 84 | . 77 29 86 94 97 6 7 130 172 104 Received Heat Transfer 1731 | . 249 93 . . 558 474 36 . . 321 Siege Activations . | . . . . . . . . . . . Martial Activations . | . . . . . . . . . . . Shielding Activations . | . . . . . . . . . . . Robots Disrupted 1 | . . . . . 1 . . . . . Combat Hostiles 1 | . . . . . 1 . . . . . Robots Corrupted 5 | . 1 1 . . 3 . . . . . Combat Hostiles 5 | . 1 1 . . 3 . . . . . Parts Fried 4 | . 2 . . . 2 . . . . . Impact Corruptions 2 | . . . . . 2 . . . . . Robots Melted . | . . . . . . . . . . . Combat Hostiles . | . . . . . . . . . . . Parts Melted 1 | . . . . . 1 . . . . . Heat Transferred 250 | . 50 100 . 50 50 . . . . . Parts Sabotaged . | . . . . . . . . . . . Parts Stolen . | . . . . . . . . . . . Parts Stripped . | . . . . . . . . . . . Power Chain Reactions 3 | . 1 1 . . 1 . . . . . Alert | -11 -10 -10 -10 -9 -8 -7 -7 -7 -7 -6 ------- Run | Yrd Mat Min Exi Min Mat Fac Low Low Zio Pro Maximum Alert Level 1 | . . . . 1 1 . . . . . Low Security (%) 81 | 100 100 100 . 91 23 100 . . . . Level 1 18 | . . . . 8 76 . . . . . Level 2 . | . . . . . . . . . . . Level 3 . | . . . . . . . . . . . Level 4 . | . . . . . . . . . . . Level 5 . | . . . . . . . . . . . High Security . | . . . . . . . . . . . Max Security . | . . . . . . . . . . . Peak Influence 338 | . 114 91 . 257 338 173 . . . . Initial 101 | . . 34 . . 93 101 . . . . Average 93 | . 40 16 . 52 231 66 . . . . Influence Increases 2742 | . 342 171 . 305 857 569 95 160 . 243 Destroy 0b10 Robot/C 1660 | . 240 100 . 140 480 320 80 140 . 160 Destroy 0b10 Robot/NC 140 | . 15 5 . 5 60 35 5 . . 15 Destroy Leader 334 | . 50 20 . 20 124 80 10 20 . 10 Allied During Kill 58 | . . . . . . . . . . 58 Successful Hack 39 | . 7 . . . 20 12 . . . . Disable Machine 180 | . 30 . . 105 45 . . . . . Destroy Structure 181 | . . 31 . 35 83 32 . . . . Lose Combat Pursuer 150 | . . 15 . . 45 90 . . . . Influence Decreases 2742 | . 253 185 75 64 874 640 248 160 . 243 Entered New Map 458 | . . 55 75 . 148 123 57 . . . Time Decay 1744 | . 233 120 . 64 446 427 171 130 . 153 Lost Part 330 | . 20 10 . . 130 90 20 30 . 30 Lost Ally 60 | . . . . . . . . . . 60 Purge Threat 150 | . . . . . 150 . . . . . Squads Dispatched 17 | . 4 . . . 3 9 . . . 1 Investigation 7 | . 2 . . . 1 4 . . . . Extermination 3 | . . . . . . 3 . . . . Reinforcement 6 | . 2 . . . 2 2 . . . . Assault 1 | . . . . . . . . . . 1 Garrison . | . . . . . . . . . . . Intercept . | . . . . . . . . . . . Searches Triggered . | . . . . . . . . . . . Construction Impeded 1 | . . . . . . 1 . . . . Haulers Reinforced . | . . . . . . . . . . . Active Scanning Responses . | . . . . . . . . . . . Cargo Convoy Interrupts . | . . . . . . . . . . . Stealth | -11 -10 -10 -10 -9 -8 -7 -7 -7 -7 -6 --------- Run | Yrd Mat Min Exi Min Mat Fac Low Low Zio Pro Distress Signals 4 | . . . . . 4 . . . . . Communications Jammed . | . . . . . . . . . . . Distress Signals . | . . . . . . . . . . . Times Spotted 128 | . 16 6 . 7 36 30 4 7 . 22 Peak Tracking Total 7 | . 3 3 . 4 4 4 4 4 . 7 Tactical Retreats 13 | . . 1 . . 3 8 1 . . . ECM-based Alert Blocks 8 | . . . . . . 7 1 . . . Traps | -11 -10 -10 -10 -9 -8 -7 -7 -7 -7 -6 ------- Run | Yrd Mat Min Exi Min Mat Fac Low Low Zio Pro Traps Triggered 4 | . 1 . . . . 3 . . . . Indirectly . | . . . . . . . . . . . Trap Hack Attempts . | . . . . . . . . . . . Triggered . | . . . . . . . . . . . Disarmed . | . . . . . . . . . . . Reprogrammed . | . . . . . . . . . . . Reused . | . . . . . . . . . . . Traps Extracted . | . . . . . . . . . . . Installed . | . . . . . . . . . . . Triggered . | . . . . . . . . . . . Machines | -11 -10 -10 -10 -9 -8 -7 -7 -7 -7 -6 ---------- Run | Yrd Mat Min Exi Min Mat Fac Low Low Zio Pro Machines Disabled 12 | . 2 . . 7 3 . . . . . Max in Single Turn 4 | . 1 . . 4 1 . . . . . Garrison Access 1 | . . . . . . 1 . . . . Machines Repaired . | . . . . . . . . . . . Machines Dismantled 1 | . 1 . . . . . . . . . Machines Sabotaged . | . . . . . . . . . . . Overloaded Fab Kills . | . . . . . . . . . . . Hacking | -11 -10 -10 -10 -9 -8 -7 -7 -7 -7 -6 --------- Run | Yrd Mat Min Exi Min Mat Fac Low Low Zio Pro Machines Accessed 18 | . 3 . 1 . 6 6 . 2 . . Terminals 10 | . 3 . . . 5 2 . . . . Fabricators 2 | . . . . . . 2 . . . . Repair Stations . | . . . . . . . . . . . Recycling Units . | . . . . . . . . . . . Scanalyzers 2 | . . . . . 1 1 . . . . Garrison Access 1 | . . . . . . 1 . . . . Total Hacks 62 | . 10 . 23 . 13 13 . 3 . . Successful 37 | . 1 . 23 . 5 5 . 3 . . Failed 24 | . 8 . . . 8 8 . . . . Catastrophic 6 | . 1 . . . 2 3 . . . . Database Lockouts 1 | . 1 . . . . . . . . . Manual 24 | . 10 . . . 9 5 . . . . Terminals 27 | . 10 . . . 11 6 . . . . Fabricators 5 | . . . . . . 5 . . . . Repair Stations . | . . . . . . . . . . . Recycling Units . | . . . . . . . . . . . Scanalyzers 3 | . . . . . 2 1 . . . . Garrison Access 1 | . . . . . . 1 . . . . Terminal Hacks 32 | . 1 . 23 . 4 1 . 3 . . Record 25 | . . . 23 . . . . 2 . . Part Schematic 1 | . 1 . . . . . . . . . Robot Analysis 2 | . . . . . 2 . . . . . Open Door 1 | . . . . . . . . 1 . . Branch Access Points 1 | . . . . . 1 . . . . . Unreport Threat 1 | . . . . . 1 . . . . . Zone Layout 1 | . . . . . . 1 . . . . Fabricator Hacks 3 | . . . . . . 3 . . . . Load Schematic 2 | . . . . . . 2 . . . . Build 1 | . . . . . . 1 . . . . Repair Station Hacks . | . . . . . . . . . . . Recycling Unit Hacks . | . . . . . . . . . . . Scanalyzer 1 | . . . . . 1 . . . . . Retrieve Study 1 | . . . . . 1 . . . . . Garrison Access Hacks 1 | . . . . . . 1 . . . . Seal Access 1 | . . . . . . 1 . . . . Unauthorized Hacks . | . . . . . . . . . . . Terminals . | . . . . . . . . . . . Fabricators . | . . . . . . . . . . . Repair Stations . | . . . . . . . . . . . Recycling Units . | . . . . . . . . . . . Scanalyzers . | . . . . . . . . . . . Garrison Access . | . . . . . . . . . . . Data Cores Recovered . | . . . . . . . . . . . Used . | . . . . . . . . . . . Hacking Detections 13 | . 3 . . . 5 5 . . . . Full Trace Events 7 | . 3 . . . 1 3 . . . . Feedback Events . | . . . . . . . . . . . Feedback Blocked . | . . . . . . . . . . . Robot Schematics Acquired . | . . . . . . . . . . . Robots Built . | . . . . . . . . . . . Authchips . | . . . . . . . . . . . Time . | . . . . . . . . . . . Total Robot Build Rating . | . . . . . . . . . . . Part Schematics Acquired 1 | . 1 . . . . . . . . . Parts Built 1 | . . . . . . 1 . . . . Authchips . | . . . . . . . . . . . Time 25 | . . . . . . 25 . . . . Total Part Build Rating 1 | . . . . . . 1 . . . . Part Studies Acquired 1 | . . . . . 1 . . . . . Parts Repaired . | . . . . . . . . . . . Time . | . . . . . . . . . . . Parts Recycled . | . . . . . . . . . . . Recycled Matter . | . . . . . . . . . . . Retrieved Matter . | . . . . . . . . . . . Retrieved Components . | . . . . . . . . . . . Parts Scanalyzed . | . . . . . . . . . . . Part Schematics Acquired . | . . . . . . . . . . . Parts Damaged . | . . . . . . . . . . . Bothacking | -11 -10 -10 -10 -9 -8 -7 -7 -7 -7 -6 ------------ Run | Yrd Mat Min Exi Min Mat Fac Low Low Zio Pro Used RIF Installer . | . . . . . . . . . . . Robots Hacked . | . . . . . . . . . . . Non-combat . | . . . . . . . . . . . Combat . | . . . . . . . . . . . Robot Hacks Applied . | . . . . . . . . . . . Relay Couplers Released . | . . . . . . . . . . . Fabnet Peak Effective % . | . . . . . . . . . . . Robots Rewired 1 | . . . . . . . . . . 1 Allies Hacked . | . . . . . . . . . . . Hacks Repelled . | . . . . . . . . . . . Allies | -11 -10 -10 -10 -9 -8 -7 -7 -7 -7 -6 -------- Run | Yrd Mat Min Exi Min Mat Fac Low Low Zio Pro Total Allies 7 | . . . . 2 . . . . 4 1 Largest Group 4 | . . . . 2 . . . . 4 4 Highest-Rated Group 154 | . . . . 48 . . . . 154 154 Highest-Rated Ally 40 | . . . . 31 . . . . 40 40 Total Orders . | . . . . . . . . . . . Ally Attacks 48 | . . . . 4 . . . . . 44 Total Damage 748 | . . . . 61 . . . . . 687 Kills 7 | . . . . . . . . . . 7 Allies Corrupted . | . . . . . . . . . . . Allies Melted . | . . . . . . . . . . . Intel | -11 -10 -10 -10 -9 -8 -7 -7 -7 -7 -6 ------- Run | Yrd Mat Min Exi Min Mat Fac Low Low Zio Pro Active Infowar (turns) 5988 | . . . . . 7 1844 1152 1101 1263 621 Sensors 5894 | . . . . . . 1757 1152 1101 1263 621 Structural 1220 | . . . . . . 1220 . . . . Machine Analysis 7 | . . . . . 7 . . . . . ECM 1402 | . . . . . . 370 1032 . . . Robot Analysis Total 2 | . . . . . 2 . . . . . Derelict Logs Recovered 8 | . . 1 . 1 . . 2 2 2 . Drone Launches . | . . . . . . . . . . . Drone Recoveries . | . . . . . . . . . . . Exploration | -11 -10 -10 -10 -9 -8 -7 -7 -7 -7 -6 ------------- Run | Yrd Mat Min Exi Min Mat Fac Low Low Zio Pro Turns Passed 9628 | 80 600 541 682 597 1111 1864 1152 1101 1263 637 Spaces Moved 6435 | 71 297 308 426 360 467 1219 972 802 1072 441 Core 8 | 3 . . . . . . . . . 5 Treads 1892 | . 228 308 426 360 465 83 22 . . . Legs 2 | . . . . . . . 2 . . . Wheels 4533 | 68 69 . . . 2 1136 948 802 1072 436 Hover . | . . . . . . . . . . . Flight . | . . . . . . . . . . . Fastest Speed 50 | 50 90 160 160 160 140 80 85 115 107 50 Average Speed 125 | 87 145 160 160 160 163 103 112 128 109 111 Slowest Speed 560 | 90 240 160 160 160 240 480 560 145 115 205 Overloaded Moves . | . . . . . . . . . . . Propulsion Burnouts . | . . . . . . . . . . . Robots Hopped . | . . . . . . . . . . . Potential Cave-ins 4 | . . . . . . . . 4 . . Cave-ins Triggered . | . . . . . . . . . . . Exploration Rate (%) 60 | 5 48 59 86 81 50 27 88 74 90 62 Regions Visited 10 Branch Regions 7 Pre-discovered Areas 4 | . . 1 1 . . . . . 2 . Known Exits Taken 4 | . . . . . . 1 1 1 1 . Unknown Exits Taken 6 | 1 1 1 1 1 1 . . . . . Scrap Searched 15 | . . . . 3 . . 2 3 3 4 Spaces Dug 84 | . . . . . 9 31 37 7 . . Terrain Destroyed 377 | . . 33 . 44 97 33 81 79 . 10 Melee 42 | . . . . . 9 31 1 1 . . Projectile 17 | . . . . . . 2 . 9 . 6 AOE 318 | . . 33 . 44 88 . 80 69 . 4 Terrain Rammed . | . . . . . . . . . . . Walls Destroyed . | . . . . . . . . . . . Machines Disabled . | . . . . . . . . . . . Actions | -11 -10 -10 -10 -9 -8 -7 -7 -7 -7 -6 --------- Run | Yrd Mat Min Exi Min Mat Fac Low Low Zio Pro Total 7513 | 83 381 341 427 372 689 1649 1013 852 1165 541 Wait 451 | . 16 9 . 3 67 235 10 4 63 44 Move 6425 | 70 296 307 425 359 466 1218 971 801 1071 441 Hop . | . . . . . . . . . . . Pick Up 67 | 4 13 3 1 . 11 15 3 8 5 4 Fast Attach 77 | 7 6 1 . . 21 24 4 3 10 1 Attach 26 | . 1 1 . . 9 8 . 4 1 2 Detach 5 | . . 1 . . 1 2 . . 1 . Swap 36 | . 2 2 . 2 6 12 5 2 1 4 Drop 79 | 1 5 3 1 . 19 22 4 8 13 3 Fire 172 | 1 36 14 . 8 36 9 11 21 . 36 Melee 169 | . . . . . 53 104 5 1 . 6 Ram . | . . . . . . . . . . . Kick . | . . . . . . . . . . . Crush 2 | . 2 . . . . . . . . . Escape Stasis . | . . . . . . . . . . . Rewire . | . . . . . . . . . . . Trap . | . . . . . . . . . . . Miscellaneous 4 | . 4 . . . . . . . . . Route ------- -11/Scrapyard -10/Materials (discovered 2 exits: [*Mat] / [*Min]) -10/Mines (discovered 2 exits: [*Mat] / *Exi) -10/Exiles -9/Mines -8/Materials -7/Factory (discovered 3 exits: *Fac x2 / *Low) -7/Lower Caves -7/Lower Caves (discovered 2 exits: *Fac / *Zio) -7/Zion -6/Proximity Caves History --------- Turn | Location | Event 55 | -11/Scrapyard | Discovered new exit (range 16) 81 | -11/Scrapyard | Entered Materials 307 | -10/Materials | Build established: Mutant 470 | -10/Materials | Discovered new exit (range 10) 489 | -10/Materials | Central database locked down 630 | -10/Materials | Discovered new exit (range 11) 681 | -10/Materials | Entered Mines 846 | -10/Mines | Discovered new exit (range 10) 899 | -10/Mines | Learned location of Recycling (-9) 1214 | -10/Mines | Deemed a non-threat by the Exiles lab entrance 1214 | -10/Mines | Discovered new exit (range 5) 1222 | -10/Mines | Entered Exiles 1262 | -10/Exiles | Met 8R-AWN 1288 | -10/Exiles | Met EX-HEX 1334 | -10/Exiles | Met EX-BIN 1398 | -10/Exiles | Met EX-DEC 1408 | -10/Exiles | Learned location of Zion (-7) 1588 | -10/Exiles | Visited The Gauntlet 1885 | -10/Exiles | Discovered new exit (range 12) 1904 | -10/Exiles | Entered Mines 2250 | -9/Mines | Learned Materials interactive machine intel 2265 | -9/Mines | Received a Rocket Launcher from a helpful Derelict 2453 | -9/Mines | Discovered new exit (range 14) 2501 | -9/Mines | Entered Materials 2501 | -8/Materials | Evolved 4 slots: Propulsion x3, Utility x1 2502 | -8/Materials | Loaded intel: 19 interactive machine locations 2620 | -8/Materials | Lost 3 parts (1p1u1w) 2633 | -8/Materials | Destroyed 8 combat bots 2671 | -8/Materials | System corruption reached 10% 2754 | -8/Materials | Lost 7 parts (1p3n3w) 3312 | -8/Materials | Build established: Scavenger-Mutant 3421 | -8/Materials | Discovered new exit (range 16) 3474 | -8/Materials | Core integrity fell below 50% 3612 | -8/Materials | Entered Factory 3612 | -7/Factory | Evolved 2 slots: Utility x2 4187 | -7/Factory | Discovered new exit (range 8) 4194 | -7/Factory | Identified exit to Factory 4355 | -7/Factory | Build established: Assassin 4868 | -7/Factory | Build established: Scavenger-Assassin 5100 | -7/Factory | Discovered exit to Factory (range 6) 5242 | -7/Factory | Lost 5 parts (1p2n1u1w) 5401 | -7/Factory | Fabricated Cargo Storage Unit (x1) 5451 | -7/Factory | Discovered new exit (range 4) 5454 | -7/Factory | Identified exit to Lower Caves 5476 | -7/Factory | Entered Lower Caves 5502 | -7/Lower Caves | Learned Factory terminal intel 5531 | -7/Lower Caves | Build established: Scavenger-Mutant 5725 | -7/Lower Caves | Encountered a Warlord checkpoint 6383 | -7/Lower Caves | Identified exit to Lower Caves 6628 | -7/Lower Caves | Entered another Lower Caves area 6635 | -7/Lower Caves | Discovered exit to Factory (range 5) 6687 | -7/Lower Caves | Entered a destroyed Warlord outpost 6826 | -7/Lower Caves | Encountered a Warlord checkpoint 6932 | -7/Lower Caves | Found Alien Artifact 6952 | -7/Lower Caves | Build established: Mutant 7136 | -7/Lower Caves | Learned Factory terminal intel 7163 | -7/Lower Caves | Core integrity fell below 50% 7586 | -7/Lower Caves | Identified Core Expander 7586 | -7/Lower Caves | Installed Core Expander, added new Propulsion slot 7602 | -7/Lower Caves | Identified exit to Zion 7729 | -7/Lower Caves | Entered Zion 7791 | -7/Zion | System corruption cleaned by Quarantine Array 7865 | -7/Zion | Learned Factory fabricator intel 8039 | -7/Zion | Learned location of 1 exit from Factory 8127 | -7/Zion | Learned location of 1 exit from Lower Caves 8275 | -7/Zion | Build established: Scavenger-Mutant 8364 | -7/Zion | Given A8's code to call for help 8476 | -7/Zion | Met Imprinter 8492 | -7/Zion | Imprinted 8494 | -7/Zion | Declared Zion's savior 8544 | -7/Zion | Found CR-A16's Pointy Stick 8615 | -7/Zion | Learned location of Data Miner (-6) 8700 | -7/Zion | Found Prototype Processor 8700 | -7/Zion | Identified Exp. Targeting Computer 8704 | -7/Zion | Found Prototype Processor 8704 | -7/Zion | Identified Exp. Armor Integrity Analyzer 8728 | -7/Zion | Found Prototype Processor 8728 | -7/Zion | Identified Exp. Signal Interpreter 8909 | -7/Zion | Visited the Megawrench Repair Shop 8910 | -7/Zion | Megawrench repaired 8 parts 8952 | -7/Zion | Discovered new exit (range 15) 8967 | -7/Zion | Identified exit to Proximity Caves 8984 | -7/Zion | Build established: Hacker-Mutant 8992 | -7/Zion | Entered Proximity Caves 8992 | -6/Proximity Caves | Accompanied by 4 allies 9111 | -6/Proximity Caves | Spotter reported a threat 9155 | -6/Proximity Caves | Spotter reported a threat 9279 | -6/Proximity Caves | Spotter reported a threat 9568 | -6/Proximity Caves | Attracted the attention of an 0b10 outpost 9622 | -6/Proximity Caves | Core integrity fell below 20% 9622 | -6/Proximity Caves | System corruption reached 10% 9625 | -6/Proximity Caves | Released all parts (3) 9629 | -6/Proximity Caves | Destroyed by Y-64 Sentinel with KE Penetrator Last Messages --------------- 09625_ Structural Scanner crushed and broken. 09625_ Hacking Suite crushed and broken. 09625_ Flak Cannon crushed and broken. 09625_ Mak. Light Armor Plating crushed and broken. 09625_ 0b10 Decoder Chip [Scout] crushed and broken. 09625_ Hcp. Matter Pod crushed and broken. 09625_ Proton Cannon crushed and broken. 09625_ Chainsword crushed and broken. 09625_ Reactive Plating crushed and broken. 09625_ Lgt. Angular Momentum Engine crushed and broken. 09625_ Reactive Plating crushed and broken. 09625_ Released CR-A16's Pointy Stick. 09625_ CR-A16's Pointy Stick crushed and broken. 09626_ Penetrated by Slug. 09628_ Dropped Field Recycling Unit. 09628_ Acquired Mak. Spear. 09629_ Critical hit (Burn: +37). Map ----- +----------------------------------------------------+ | ???# ## ??????????????????????????????????????? | | ### ???????????????????????????????????????? | | ??????????????????????????????????????? | | ?????????????????????????????????????????? | | #????????????????????????????????????????????? | | #????????????????????????????????????????????? | | #?????????????????????????????????????????????? | | ######????????????????????????????????????????? | | #????????????????????????????????????????? | | ##???????????????????????????????????????? | | % % #???????????????????????????????????????? | | %"# ###????????????????????????##? ??????????? | | ## % ###??????#####????????????? ## ###????????? | | ## ###????# #????????????? # #???????? | | #### ##???# #????????????? # ??????? | | #??#### ##### ##??????????? +???????? | | ??????## ## #??????#???? % ????????? | | ???????### #????? #???? ?????????? | | ?????????## ##?#### ????? #??????????? | | ??????????## ##??# ????? ####+##????? | | ???????????### ## #???# #????? " ???? | | #????????##?#### #???# #?????= "%" #???? | | ????????# #??## #?### ###?##!% " #????? | | #???????# ### ### |###=g[g g #????? | | #???????### !%!%Y!=%* #???? | | #???????# !@|=!b[%# ??? | | ????????## ##**###?? ## ??? | | ??###????### ###!##??????#?????? ???? | | ?? ##?????## ### #####???????????????????? | | ## #?###??# ####?## ##???????????????????? | | # #?## ### ######## ]%#???????????????????? | | #??# ! #???????????????????? | | #??# !##???????????????????? | | ##?## ##### ##????????????????????? | | #??## ######### ###?????????????????????? | | # ###### #####???????????????????????? | | #####!%#### ###??????????????????????????? | | ???# !!#### ###### ##?????????????????????????? | | ???# ### #??## ##????????????????????????? | | ???## ## #?## # #####????????????????????? | | ###### ## ### #????????????????????? | | ### # ##???????????????????? | | ### #?# #### #???????????????????? | | ### #?# #### ## # # #???????????????????? | | # #?## ## ### #???????????????????? | | #??# ## #### ## ###&&!#???????????????????? | | ! / #### ####### #####?#&&##???????????????????? | | #%[ #???# #?????#&&&#???????????????????? | | ##! #### ##??# ##????#%&##???????????????????? | | ?## #??# #### ###??####????????????????????? | +----------------------------------------------------+ Best States ------------- Heat Dissipation 34 Energy Generation 18 Energy Capacity 290 Matter Stores 300 Matter Capacity 300 Sight Range 16 Robot Scan Range 15 Terrain Scan Density 10 ECM Strength 1 Armor Coverage 600 Resistance: KI 20 Core Shielding 20 Melee Speed Boost 20 Evasion (%) 44 Targeting Accuracy 6 Recoil Reduction 5 Defensive Hacking 25 Item Schematics ----------------- Cargo Storage Unit | -10/Materials | Hacked Robot Schematics ------------------ None Fabricated ------------ Cargo Storage Unit | x1 | -7/Factory Repaired ---------- Nothing Studied --------- Wheel | -8/Materials | Hacked Alien Tech Used ----------------- Core Expander Achievements -------------- None Challenges ------------ None Game ------ Seed AuthchipFireScrapsphere Manual? 0 Play Time 01:03:00 Cumulative 113.2 hours Start 2026.02.24 @ 21:47:25 End 2026.02.25 @ 01:32:45 Sessions 1 Manual Loads 0 Difficulty Rogue Special Mode None Game No. 168 Rogue 168 Adventurer 0 Explorer 0 Win Type - Total 0 Types 0/0/0/0/0/0/0/0/0/0 Lore% 33 Gallery% 44 Achievement% 35 Wizard Run 0 Options --------- Layout 1 ASCII 0 Keyboard 0 Movement Mouse Keybinds 0 Fullscreen 2 Font 24/Smallcaps Map View 50x35 Zoom Use 26% Tactical HUD 1 Map Filters NONE Filters NONE Steam 1 RUN: 7838860b-ce86-4d81-a23d-22fae5668431